bitfinex/quotes_ETHUSD_20250909
["timestamp","ask_amount","ask_price","bid_price","bid_amount"]
[1757393335238,6.93836373,4307.9,4307.8,1e-08]
[1757393335803,6.71256373,4307.9,4307.8,1e-08]
[1757393337002,6.71256373,4307.9,4307.8,0.31320001]
[1757393337242,2.83056373,4307.9,4307.8,0.31320001]
[1757393337440,6.71156373,4307.9,4307.8,1.24920001]
[1757393337654,4.39024708,4307.9,4307.8,1.24920001]
[1757393338000,6.71156373,4307.9,4307.8,1.24920001]
[1757393338354,4.39024708,4307.9,4307.8,1.24920001]
[1757393338493,6.71156373,4307.9,4307.8,1.24920001]
[1757393338697,6.49465082,4307.9,4307.8,1.24920001]
[1757393340242,4.17333417,4307.9,4307.8,1.24920001]
[1757393340442,6.49465082,4307.9,4307.8,1.24920001]
[1757393343344,4.39024598,4307.9,4307.8,1.24920001]
[1757393343921,4.17233417,4307.9,4307.8,1.24920001]
[1757393345244,0.29233417,4307.9,4307.8,1.24920001]
[1757393345448,4.17233417,4307.9,4307.8,1.24920001]
[1757393345910,6.49365082,4307.9,4307.8,1.24920001]
[1757393346109,4.17233417,4307.9,4307.8,1.24920001]
[1757393346703,4.38941919,4307.9,4307.8,1.24920001]
[1757393347010,6.49365082,4307.9,4307.8,1.24920001]
[1757393347225,6.34365082,4307.9,4307.8,1.24920001]
[1757393347430,4.23948817,4307.9,4307.8,1.24920001]
[1757393350380,6.56080482,4307.9,4307.8,1.24920001]
[1757393353190,4.23948817,4307.9,4307.8,1.24920001]
[1757393353490,4.23948817,4307.9,4307.8,1.37412001]
[1757393353693,6.56080482,4307.9,4307.8,1.37412001]
[1757393353942,4.23948817,4307.9,4307.8,1.37412001]
[1757393354593,6.56080482,4307.9,4307.8,1.37412001]
[1757393356257,4.23948817,4307.9,4307.8,1.37412001]
[1757393357160,6.56080482,4307.9,4307.8,1.37412001]
[1757393357365,6.56080482,4307.9,4307.8,0.31320001]
[1757393357702,6.79870482,4307.9,4307.8,1e-08]
[1757393357904,2.68080482,4307.9,4307.8,1e-08]
[1757393358113,0.35948817,4307.9,4307.8,1.22140001]
[1757393358581,0.02633417,4307.9,4307.8,3.54277054]
[1757393358771,0.02633417,4307.9,4307.8,4.12919464]
[1757393358772,3.76233417,4307.9,4307.8,4.12919464]
[1757393370863,3.90333417,4307.9,4307.8,4.24519464]
[1757393371158,3.878,4307.9,4307.8,4.24519464]
[1757393371287,0.001,4307.9,4307.8,4.24519464]
[1757393371490,0.001,4307.9,4307.8,4.26840834]
[1757393371857,0.001,4307.9,4307.8,4.24519464]
[1757393374349,0.001,4307.9,4307.8,5.51690988]
[1757393374648,0.001,4307.9,4307.8,8.49369618]
[1757393383119,0.001,4307.9,4307.8,7.24519464]
[1757393383352,0.001,4307.9,4307.8,8.49354968]
[1757393384156,0.001,4307.9,4307.8,7.24519464]
[1757393399266,0.2385,4307.9,4307.8,9.89879464]
[1757393399627,0.001,4307.9,4307.8,9.89879464]
[1757393401737,0.001,4307.9,4307.8,10.65599464]
[1757393401952,0.001,4307.9,4307.8,11.11309464]
[1757393402352,0.2175,4307.9,4307.8,6.02379464]
[1757393402665,0.2175,4307.9,4307.8,5.43737054]
[1757393402828,0.001,4307.9,4307.8,5.43737054]
[1757393403738,0.001,4307.9,4307.8,6.64867054]
[1757393404124,0.001,4307.9,4307.8,10.52267054]
[1757393404437,0.001,4307.9,4307.8,10.80759099]
[1757393404639,0.3003,4307.9,4307.8,10.80759099]
[1757393405983,0.3003,4307.9,4307.8,6.93359099]
[1757393406187,0.6716,4307.9,4307.8,9.31137054]
[1757393406331,0.6716,4307.9,4307.8,5.43737054]
[1757393406332,1.151,4307.9,4307.8,5.43737054]
[1757393406735,0.6716,4307.9,4307.8,5.43737054]
[1757393407132,0.3003,4307.9,4307.8,5.43737054]
[1757393407398,0.3003,4307.9,4307.8,6.21325396]
[1757393409484,0.001,4307.9,4307.8,6.21325396]
[1757393409791,0.001,4307.9,4307.8,6.96045396]
[1757393410083,0.001,4307.9,4307.8,7.42455396]
[1757393411012,0.001,4307.9,4307.8,6.21325396]
[1757393411302,0.001,4307.9,4307.8,6.50335396]
[1757393411505,0.001,4307.9,4307.8,6.96745396]
[1757393411657,0.001,4307.9,4307.8,7.42455396]
[1757393416210,0.2175,4307.9,4307.8,6.21325396]
[1757393416414,0.2175,4307.9,4307.8,5.32137054]
[1757393417067,0.001,4307.9,4307.8,5.32137054]
[1757393417615,0.2175,4307.9,4307.8,5.32137054]
[1757393418118,0.001,4307.9,4307.8,6.07557054]
[1757393418267,0.001,4307.9,4307.8,5.61147054]
[1757393418469,0.001,4307.9,4307.8,6.71425099]
[1757393421216,0.3003,4307.9,4307.8,6.71425099]
[1757393421373,0.3003,4307.9,4307.8,5.32137054]
[1757393422814,0.001,4307.9,4307.8,5.32137054]
[1757393423018,0.3003,4307.9,4307.8,5.32137054]
[1757393423519,0.3003,4307.9,4307.8,6.57109947]
[1757393423818,0.3003,4307.9,4307.8,5.32137054]
[1757393425020,0.001,4307.9,4307.8,5.32137054]
[1757393425219,0.001,4307.9,4307.8,6.56507396]
[1757393425453,0.3003,4307.9,4307.8,6.56507396]
[1757393427406,0.3003,4307.9,4307.8,5.32137054]
[1757393432634,0.001,4307.9,4307.8,5.32137054]
[1757393436505,0.301,4307.9,4307.8,5.32137054]
[1757393438209,0.001,4307.9,4307.8,5.32137054]
[1757393438864,0.225,4307.9,4307.8,5.32137054]
[1757393441510,0.001,4307.9,4307.8,5.32137054]
[1757393441739,0.001,4307.9,4307.8,6.14129396]
[1757393451796,0.001,4307.9,4307.8,6.43169396]
[1757393452235,0.001,4307.9,4307.8,6.87209396]
[1757393452438,0.225,4307.9,4307.8,3.32882343]
[1757393452660,0.225,4307.9,4307.3,0.002]
[1757393452661,0.7129,4307.9,4307.3,1.25258312]
[1757393452816,5.05517117,4307.6,4307.3,0.002]
[1757393453165,2.2160215,4307.5,4307.3,0.002]
[1757393453317,4.46691075,4307.4,4307.3,0.002]
[1757393454034,4.2494,4307.4,4307.3,0.002]
[1757393457462,4.051,4307.4,4307.3,0.002]
[1757393457633,1.8738972,4307.5,4307.3,0.7328]
[1757393457833,4.049,4307.4,4307.3,1.1986]
[1757393458164,4.049,4307.4,4307.3,0.9082]
[1757393458470,4.049,4307.4,4307.3,1.1986]
[1757393458672,5.827,4307.5,4307.3,1.1986]
[1757393458838,5.827,4307.5,4307.4,0.9062]
[1757393459029,5.827,4307.5,4307.4,1.1966]
[1757393459383,5.827,4307.5,4307.3,0.002]
[1757393459716,0.099,4307.4,4307.3,0.002]
[1757393462156,2.4205861,4307.4,4307.3,0.002]
[1757393462340,2.5443861,4307.4,4307.3,0.002]
[1757393462535,2.4205861,4307.4,4307.3,0.002]
[1757393462738,2.5443861,4307.4,4307.3,0.002]
[1757393463031,2.76106018,4307.4,4307.3,0.002]
[1757393463572,0.31567408,4307.4,4307.3,0.002]
[1757393463723,6.67826018,4307.4,4307.3,0.002]
[1757393465239,6.4615861,4307.4,4307.3,0.002]
[1757393465444,6.5853861,4307.4,4307.3,0.002]
[1757393465871,16.57123417,4307.4,4307.3,0.002]
[1757393466243,16.56623417,4307.4,4307.3,0.002]
[1757393467534,9.67107778,4307.4,4307.3,0.002]
[1757393473473,9.66207778,4307.4,4307.3,0.002]
[1757393474375,11.73823417,4307.4,4307.3,0.002]
[1757393474582,15.76323417,4307.4,4307.3,0.002]
[1757393474745,15.63943417,4307.4,4307.3,0.002]
[1757393474949,16.55523417,4307.4,4307.3,0.002]
[1757393476351,17.05381474,4307.4,4307.3,0.002]
[1757393477535,16.93001474,4307.4,4307.3,0.002]
[1757393478243,17.14652601,4307.4,4307.3,0.002]
[1757393484506,24.26652601,4307.4,4307.3,0.002]
[1757393485494,18.28916962,4307.4,4307.3,0.002]
[1757393485992,18.17216962,4307.4,4307.3,0.7918]
[1757393486292,18.17216962,4307.4,4307.3,1.2247]
[1757393486293,7.25916962,4307.4,4307.3,1.2247]
[1757393486452,6.54407778,4307.4,4307.3,1.2247]
[1757393486990,4.22249168,4307.4,4307.3,1.2247]
[1757393487408,6.54407778,4307.4,4307.3,1.2247]
[1757393488409,0.21649168,4307.4,4307.3,1.2247]
[1757393488575,4.22249168,4307.4,4307.3,1.2247]
[1757393488779,0.21649168,4307.4,4307.3,3.54634]
[1757393488972,4.22849168,4307.4,4307.3,3.54634]
[1757393489378,4.22849168,4307.4,4307.3,1.2247]
[1757393489619,4.22911162,4307.4,4307.3,1.2247]
[1757393490026,4.22911161,4307.4,4307.3,1.2247]
[1757393490382,0.21711161,4307.4,4307.3,1.2247]
[1757393490582,4.22711161,4307.4,4307.3,1.2247]
[1757393491081,4.01,4307.4,4307.3,1.2247]
[1757393491283,4.22712984,4307.4,4307.3,1.2247]
[1757393491999,0.001,4307.7,4307.6,2.32147831]
[1757393492232,4.008,4307.8,4307.7,2.32142442]
[1757393492599,0.001,4307.9,4307.8,2.32137053]
[1757393492808,4.028,4307.9,4307.8,3.21877053]
[1757393493100,4.028,4307.9,4307.8,3.52527053]
[1757393497893,0.001,4307.9,4307.8,3.52527053]
[1757393502005,0.001,4307.9,4307.8,3.64127053]
[1757393510716,0.001,4307.9,4307.8,3.33477053]
[1757393510867,0.001,4307.9,4307.8,3.64127053]
[1757393511068,0.1,4307.9,4307.4,2.75164259]
[1757393511269,0.1,4307.9,4307.4,0.8974]
[1757393511585,0.116,4307.8,4307.4,0.4301]
[1757393512620,0.116,4307.8,4307.4,2.7516372]
[1757393512818,0.116,4307.8,4307.5,3.21892606]
[1757393513024,0.116,4307.8,4307.5,0.8974]
[1757393513574,0.116,4307.8,4307.5,3.21892563]
[1757393514490,0.116,4307.8,4307.6,0.8974]
[1757393514805,0.116,4307.8,4307.7,0.3065]
[1757393515019,0.116,4307.8,4307.7,3.52532442]
[1757393516115,0.116,4307.8,4307.7,1.2039]
[1757393516494,0.116,4307.8,4307.7,3.52532442]
[1757393516691,0.001,4307.9,4307.8,2.32137053]
[1757393516879,0.001,4307.9,4307.8,3.21877053]
[1757393517083,0.001,4307.9,4307.8,3.52527053]
[1757393517497,0.001,4307.9,4307.8,7.12154518]
[1757393517693,0.001,4307.9,4307.8,11.23554518]
[1757393519806,0.001,4307.9,4307.8,7.23754518]
[1757393520005,0.001,4307.9,4307.8,10.63927053]
[1757393520348,0.001,4307.9,4307.8,6.64127053]
[1757393523157,0.001,4307.9,4307.8,10.63627053]
[1757393533200,0.001,4307.9,4307.8,6.64127053]
[1757393533494,0.001,4307.9,4307.8,10.62427053]
[1757393537093,0.001,4307.9,4307.8,10.9312028]
[1757393537397,0.001,4307.9,4307.8,6.64127053]
[1757393537553,0.001,4307.9,4307.8,10.61927053]
[1757393539286,0.001,4307.9,4307.8,9.41537053]
[1757393539852,0.001,4307.9,4307.8,10.32367053]
[1757393540502,0.001,4307.9,4307.8,10.61957053]
[1757393540808,0.001,4307.9,4307.8,5.89257053]
[1757393541105,0.1994,4307.9,4307.8,0.116]
[1757393541307,0.1994,4307.9,4307.8,2.32137053]
[1757393542345,0.001,4307.9,4307.8,3.52557053]
[1757393542694,0.001,4307.9,4307.8,4.52647488]
[1757393543968,0.001,4307.9,4307.8,7.52647488]
[1757393553320,0.001,4307.9,4307.6,2.32346639]
[1757393553321,0.2247,4307.9,4307.6,2.32346639]
[1757393553522,0.1994,4307.9,4307.6,0.002]
[1757393553739,0.1994,4307.9,4307.6,2.32346476]
[1757393553963,0.001,4307.9,4307.6,0.002]
[1757393554095,0.001,4307.9,4307.8,2.32137053]
[1757393554500,0.1,4307.9,4307.8,2.32137053]
[1757393559222,0.001,4307.9,4307.8,2.32137053]
[1757393561975,0.001,4307.9,4307.8,3.54767053]
[1757393563136,0.001,4307.9,4307.8,7.53476656]
[1757393563379,0.001,4307.9,4307.8,7.51155286]
[1757393578138,0.17731479,4308.6,4308.5,2.32099338]
[1757393578139,0.001,4308.6,4308.5,2.32099338]
[1757393578301,0.001,4308.6,4308.5,7.18978427]
[1757393578504,0.001,4308.6,4308.5,8.39287434]
[1757393578703,0.001,4308.6,4308.5,8.07850007]
[1757393579015,0.001,4308.6,4308.5,12.74177636]
[1757393579330,0.001,4308.6,4308.5,11.07850007]
[1757393581050,0.001,4308.6,4308.5,7.12750007]
[1757393581242,0.001,4308.6,4308.5,11.08050007]
[1757393581971,1e-08,4308.8,4308.7,3.11288564]
[1757393582153,1e-08,4308.8,4308.7,8.78422421]
[1757393582352,1e-08,4308.8,4308.7,10.01272421]
[1757393584351,1e-08,4308.8,4308.7,13.01272421]
[1757393587591,1e-08,4308.8,4308.7,10.01272421]
[1757393589910,0.001,4309.4,4308.8,6.11283178]
[1757393590222,0.001,4309.4,4309.3,2.3205625]
[1757393590368,0.001,4309.4,4309.3,11.36216812]
[1757393590568,0.001,4309.4,4309.3,11.4549625]
[1757393590763,0.001,4309.4,4309.3,12.3890625]
[1757393590963,0.001,4309.6,4309.5,2.3204548]
[1757393590964,1e-08,4309.6,4309.5,2.3204548]
[1757393591182,1e-08,4309.6,4309.5,9.28665934]
[1757393591366,1e-08,4309.6,4309.5,10.4919548]
[1757393592161,1e-08,4309.9,4309.6,3.0]
[1757393592371,1e-08,4309.9,4309.8,5.32029328]
[1757393592584,1e-08,4309.9,4309.8,5.61469328]
[1757393592903,1e-08,4309.9,4309.8,7.34079328]
[1757393593112,0.026,4310.8,4309.9,2.32023944]
[1757393593406,0.026,4310.8,4310.3,2.32002412]
[1757393593697,0.026,4310.8,4310.3,9.58162436]
[1757393593900,0.026,4310.8,4310.3,10.49252412]
[1757393598038,0.026,4310.8,4310.3,11.28452412]
[1757393599508,0.001,4310.5,4310.3,11.28452412]
[1757393601046,0.001,4310.5,4310.3,11.39972412]
[1757393601254,0.001,4310.5,4310.3,13.08583004]
[1757393612496,0.041,4310.9,4310.8,2.31975503]
[1757393612696,0.041,4310.9,4310.8,6.38615258]
[1757393612895,0.041,4310.9,4310.8,6.83785503]
[1757393613496,0.041,4310.9,4310.8,7.30195503]
[1757393613945,0.041,4310.9,4310.8,8.79612845]
[1757393614315,0.041,4310.9,4310.8,11.79612845]
[1757393617148,0.041,4310.9,4310.8,9.36295503]
[1757393618147,0.14,4310.9,4310.8,9.36295503]
[1757393619845,0.041,4310.9,4310.8,10.15065503]
[1757393620169,0.041,4310.9,4310.8,10.61475503]
[1757393621181,0.001,4311.3,4310.8,12.30653608]
[1757393621420,0.1152,4312.3,4310.8,12.30653608]
[1757393621421,0.04200001,4312.9,4311.1,0.792]
[1757393621565,0.149,4312.8,4312.7,2.31873304]
[1757393621877,0.29,4312.8,4312.7,2.31873304]
[1757393623580,0.248,4312.8,4312.7,2.31873304]
[1757393623945,0.2898,4312.8,4312.7,2.31873304]
[1757393624345,0.124,4312.8,4312.7,2.31873304]
[1757393626853,0.124,4312.8,4312.7,2.34192037]
[1757393628042,0.124,4312.8,4312.7,2.31873304]
[1757393628244,0.025,4312.8,4312.7,2.34192037]
[1757393628478,0.025,4312.8,4312.7,3.28092037]
[1757393628684,0.025,4312.8,4312.7,2.78283304]
[1757393628846,0.025,4312.8,4312.7,2.31873304]
[1757393629995,0.124,4312.8,4312.7,2.31873304]
[1757393631237,0.124,4312.8,4312.7,2.43393304]
[1757393632251,0.025,4312.8,4312.7,2.43393304]
[1757393633915,0.124,4312.8,4312.7,2.43393304]
[1757393635640,0.025,4312.8,4312.7,2.43393304]
[1757393637950,0.025,4312.8,4312.7,2.89803304]
[1757393638821,0.025,4312.8,4312.7,3.68573304]
[1757393639245,0.025,4312.8,4312.7,3.70892037]
[1757393639446,0.025,4312.8,4312.7,3.68573304]
[1757393644429,1e-08,4312.9,4312.7,7.98348986]
[1757393644631,1e-08,4312.9,4312.8,10.51632367]
[1757393644941,1e-08,4312.9,4312.8,12.5996541]
[1757393645165,1e-08,4312.9,4312.8,12.8980541]
[1757393645334,1e-08,4312.9,4312.8,13.97564649]
[1757393646388,1e-08,4312.9,4312.8,14.44112927]
[1757393650255,1e-08,4312.9,4312.8,14.12717167]
[1757393650681,1e-08,4312.9,4312.8,14.13217167]
[1757393652086,1e-08,4312.9,4312.8,15.79263232]
[1757393655888,1e-08,4312.9,4312.8,15.76942402]
[1757393656363,1e-08,4312.9,4312.8,14.10896337]
[1757393656538,1e-08,4312.9,4312.8,15.76942402]
[1757393656739,1e-08,4312.9,4312.8,14.10396337]
[1757393656944,1e-08,4312.9,4312.8,14.41792097]
[1757393661818,1e-08,4312.9,4312.8,14.10396337]
[1757393662319,1e-08,4312.9,4312.8,14.41792097]
[1757393662494,1e-08,4312.9,4312.8,16.07838162]
[1757393662883,1e-08,4312.9,4312.8,16.40489884]
[1757393663106,1e-08,4312.9,4312.8,16.07838162]
[1757393663808,1e-08,4312.9,4312.8,14.41792097]
[1757393668432,1e-08,4312.9,4312.8,14.39471267]
[1757393669531,1e-08,4312.9,4312.8,14.39671267]
[1757393670586,0.00100001,4312.9,4312.8,14.39671267]
[1757393671928,0.001,4313.3,4313.2,3.11046424]
[1757393672129,0.001,4313.3,4313.2,11.74521593]
[1757393672430,0.001,4313.3,4313.2,13.39278889]
[1757393672736,0.001,4313.3,4313.2,11.83093301]
[1757393676768,0.001,4313.3,4313.2,6.81587541]
[1757393676976,0.001,4313.3,4313.2,7.24557541]
[1757393677124,0.001,4313.3,4313.2,10.70607541]
[1757393677326,0.001,4313.3,4313.2,11.02047541]
[1757393677526,0.001,4313.3,4313.2,11.51797541]
[1757393677726,0.001,4313.3,4313.2,13.0702377]
[1757393678886,0.001,4313.3,4313.2,12.7558377]
[1757393679071,0.001,4313.3,4313.2,11.20357541]
[1757393679401,0.001,4313.3,4313.2,10.27637541]
[1757393679524,0.001,4313.3,4313.2,11.51697541]
[1757393679728,0.001,4313.3,4313.2,11.20257541]
[1757393679972,0.1,4313.3,4313.2,10.27537541]
[1757393680473,0.001,4313.3,4313.2,10.18266424]
[1757393681203,0.001,4313.3,4313.2,11.42426424]
[1757393681556,0.001,4313.3,4313.2,11.10986424]
[1757393682485,0.001,4313.3,4313.2,11.42426424]
[1757393683604,0.001,4313.3,4313.2,11.10986424]
[1757393684402,0.001,4313.3,4313.2,11.42426424]
[1757393685763,0.001,4313.3,4313.2,11.40107744]
[1757393687005,0.001,4313.3,4313.2,11.37786914]
[1757393687460,0.001,4313.3,4313.2,11.06346914]
[1757393688603,0.001,4313.3,4313.2,11.05446914]
[1757393689508,0.001,4313.3,4313.2,11.05346914]
[1757393689702,0.001,4313.3,4313.2,11.36786914]
[1757393690001,0.001,4313.3,4313.2,11.68182674]
[1757393691807,0.001,4313.3,4313.2,11.36786914]
[1757393694120,0.1994,4313.3,4313.2,9.21506914]
[1757393694316,0.1994,4313.3,4313.2,5.27206914]
[1757393694541,0.2667,4313.3,4313.2,2.31846424]
[1757393696937,0.2667,4313.3,4313.1,2.31851361]
[1757393697140,0.0673,4313.2,4312.8,3.002]
[1757393697345,0.1967,4312.9,4312.8,5.32067928]
[1757393697642,0.2657,4312.9,4312.8,5.32067928]
[1757393698100,0.2237,4312.9,4312.8,5.32067928]
[1757393699365,0.2237,4312.9,4312.8,2.32067928]
[1757393699506,0.2657,4312.9,4312.8,2.32067928]
[1757393699700,0.2237,4312.9,4312.8,2.32067928]
[1757393700045,0.1967,4312.9,4312.8,2.32067928]
[1757393701652,0.2657,4312.9,4312.8,0.002]
[1757393702005,0.52412782,4312.9,4312.8,0.002]
[1757393702213,0.2657,4312.9,4312.8,0.002]
[1757393704122,0.2657,4312.9,4311.9,0.002]
[1757393704324,0.2657,4312.9,4312.2,2.31899779]
[1757393704513,0.069,4312.8,4312.0,2.3190621]
[1757393704707,0.069,4312.8,4311.9,0.002]
[1757393704912,0.195,4312.0,4311.9,2.32116324]
[1757393705254,0.195,4312.0,4311.7,3.0]
[1757393705459,0.195,4312.0,4311.5,2.31937716]
[1757393705660,0.2237,4312.0,4311.5,2.31937716]
[1757393706006,0.195,4312.0,4311.4,3.002]
[1757393706223,0.0707,4311.9,4311.4,0.002]
[1757393706424,0.0707,4311.9,4311.4,2.32138827]
[1757393706630,0.264,4311.9,4311.4,2.32138827]
[1757393706924,0.264,4311.9,4311.4,0.002]
[1757393707274,0.222,4311.9,4311.5,2.31936222]
[1757393707707,0.222,4311.9,4311.4,2.32142818]
[1757393707914,0.222,4311.9,4311.4,0.002]
[1757393708819,0.1933,4311.9,4311.6,2.31932369]
[1757393709007,0.1933,4311.9,4311.4,2.32141975]
[1757393709526,0.1933,4311.9,4311.6,2.3193142]
[1757393709849,0.2657,4311.9,4311.4,0.002]
[1757393710008,4.36386324,4311.9,4311.4,0.002]
[1757393710209,4.80024956,4311.9,4311.4,0.002]
[1757393710906,2.40868632,4311.9,4311.4,0.002]
[1757393711146,6.34068632,4311.9,4311.4,2.3213809]
[1757393711322,5.9043,4311.9,4311.4,2.3213809]
[1757393711524,5.9043,4311.9,4311.5,2.31937101]
[1757393711722,5.9043,4311.9,4311.4,2.32142478]
[1757393711954,5.9043,4311.9,4311.5,2.31936483]
[1757393712128,1.9723,4311.9,4311.5,2.31936483]
[1757393712329,5.9043,4311.9,4311.5,2.31936483]
[1757393712525,5.9043,4311.9,4311.6,2.31931057]
[1757393712909,5.9043,4311.9,4311.4,0.002]
[1757393713112,5.9033,4311.9,4311.4,0.002]
[1757393713352,6.7951207,4311.9,4311.4,0.002]
[1757393713759,9.18668394,4311.9,4311.4,0.002]
[1757393714254,9.30188394,4311.9,4311.4,0.002]
[1757393718178,10.09388394,4311.9,4311.4,0.002]
[1757393718348,2.9793207,4311.9,4311.4,0.002]
[1757393718534,6.9083207,4311.9,4311.4,0.002]
[1757393718738,9.22748394,4311.9,4311.4,0.002]
[1757393720854,6.9083207,4311.9,4311.4,0.002]
[1757393721060,9.22748394,4311.9,4311.4,0.002]
[1757393721373,6.9083207,4311.9,4311.4,0.002]
[1757393722269,2.7860207,4311.9,4311.4,0.002]
[1757393722610,5.8222,4311.9,4311.8,1.2521]
[1757393722814,5.9212,4311.9,4311.8,0.027]
[1757393723304,5.9212,4311.9,4311.8,0.0038084]
[1757393724540,8.24036324,4311.9,4311.8,0.0038084]
[1757393727200,8.40616324,4311.9,4311.8,0.0038084]
[1757393727366,10.07484886,4311.9,4311.8,0.0038084]
[1757393728198,10.03284886,4311.9,4311.8,0.0038084]
[1757393729891,9.90904886,4311.9,4311.8,0.0038084]
[1757393731681,7.37168562,4311.9,4311.8,0.0038084]
[1757393731997,8.02216324,4311.9,4311.8,1.2268084]
[1757393732701,5.703,4311.9,4311.8,1.2268084]
[1757393733054,8.02216324,4311.9,4311.8,1.2268084]
[1757393734200,5.703,4311.9,4311.8,1.2268084]
[1757393734373,6.72202993,4311.9,4311.8,1.2268084]
[1757393734776,2.79902993,4311.9,4311.8,1.2268084]
[1757393734962,5.705,4311.9,4311.8,1.2268084]
[1757393738671,5.704,4311.9,4311.8,1.2268084]
[1757393741086,5.92109138,4311.9,4311.8,1.1941491]
[1757393742197,5.704,4311.9,4311.8,1.1941491]
[1757393743301,5.92117563,4311.9,4311.8,1.1941491]
[1757393743518,6.74519978,4311.9,4311.8,1.1941491]
[1757393744625,5.92117563,4311.9,4311.8,3.51336613]
[1757393744926,5.704,4311.9,4311.8,3.51336613]
[1757393745720,5.704,4311.9,4311.8,3.62856613]
[1757393746224,1.78,4311.9,4311.8,3.62856613]
[1757393746515,5.704,4311.9,4311.8,3.62856613]
[1757393747099,1.78,4311.9,4311.8,3.62856613]
[1757393747301,5.704,4311.9,4311.8,3.62856613]
[1757393748424,1.78,4311.9,4311.8,3.62856613]
[1757393748620,5.232,4311.9,4311.8,3.62856613]
[1757393755211,5.232,4311.9,4311.8,3.63056613]
[1757393755409,5.232,4311.9,4311.8,2.43641703]
[1757393755611,5.232,4311.9,4311.8,3.54421703]
[1757393755813,5.232,4311.9,4311.8,2.80981703]
[1757393756037,5.232,4311.9,4311.8,2.32121703]
[1757393757351,5.232,4311.9,4311.8,3.54421703]
[1757393757751,1.78,4311.9,4311.8,3.54421703]
[1757393757952,5.703,4311.9,4311.8,3.54421703]
[1757393762759,0.001,4311.9,4311.8,6.54421703]
[1757393762924,0.001,4312.4,4312.3,2.31894812]
[1757393763126,0.026,4312.8,4312.3,2.31894812]
[1757393763127,0.026,4312.8,4312.7,2.31873304]
[1757393763331,0.026,4312.8,4312.7,2.62293304]
[1757393763644,3.949,4312.8,4312.7,2.81583304]
[1757393763826,3.949,4312.8,4312.7,3.54943304]
[1757393764976,3.949,4312.8,4312.7,2.31873304]
[1757393765674,4.3439,4312.8,4312.7,2.81583304]
[1757393765815,4.3439,4312.8,4312.7,3.54943304]
[1757393766249,3.949,4312.8,4312.7,3.54943304]
[1757393769030,0.026,4312.8,4312.7,3.54943304]
[1757393769261,0.026,4312.8,4312.7,10.49462037]
[1757393769561,0.001,4313.4,4313.2,2.31846424]
[1757393769863,0.001,4313.4,4313.2,2.55031066]
[1757393770015,0.001,4313.4,4313.2,3.78101066]
[1757393770228,0.001,4313.4,4313.2,6.78101066]
[1757393772845,0.001,4313.4,4313.2,6.89621066]
[1757393773931,0.001,4313.4,4313.2,10.81821066]
[1757393775636,0.001,4313.4,4313.2,11.13216826]
[1757393776073,0.001,4313.4,4313.2,10.81821066]
[1757393778170,0.001,4313.4,4313.2,11.61021066]
[1757393784038,0.001,4313.4,4313.2,11.60821066]
[1757393785944,0.001,4313.4,4313.2,7.25881066]
[1757393786275,0.001,4313.4,4313.2,10.81621066]
[1757393786580,0.001,4313.4,4313.2,11.60821066]
[1757393790093,0.019,4313.9,4313.4,2.31832672]
[1757393790297,0.019,4313.9,4313.8,2.31814177]
[1757393790660,0.118,4313.9,4313.8,2.31814177]
[1757393792698,0.119,4313.9,4313.8,2.31814177]
[1757393795212,0.2713,4313.9,4313.8,2.31814177]
[1757393795483,0.119,4313.9,4313.8,2.31814177]
[1757393796558,0.119,4313.9,4312.8,0.027]
[1757393796559,0.3413,4313.9,4312.8,0.027]
[1757393796819,0.3413,4313.9,4313.0,3.0]
[1757393797004,0.3413,4313.9,4313.1,3.919]
[1757393797784,0.3413,4313.9,4313.6,3.0]
[1757393797965,0.3413,4313.9,4313.7,2.31819551]
[1757393798300,0.1523,4313.8,4313.7,2.31819551]
[1757393798500,0.0995,4313.8,4313.7,2.31819551]
[1757393799303,0.02,4313.9,4313.8,2.31814177]
[1757393800061,0.02,4313.9,4313.8,2.43334177]
[1757393801604,0.02,4313.9,4313.8,2.88434177]
[1757393802386,0.02,4313.9,4313.8,2.43334177]
[1757393802574,0.119,4313.9,4313.8,2.43334177]
[1757393803304,0.02,4313.9,4313.8,2.43334177]
[1757393804007,0.119,4313.9,4313.8,2.43334177]
[1757393805272,0.02,4313.9,4313.8,2.43334177]
[1757393806428,0.1195,4313.9,4313.8,2.43334177]
[1757393806612,0.02,4313.9,4313.8,3.65634177]
[1757393807801,0.02,4313.9,4313.8,6.54114177]
[1757393808136,0.02,4313.9,4313.8,5.31814177]
[1757393808824,0.02,4313.9,4313.8,5.76914177]
[1757393809191,0.02,4313.9,4313.8,6.54114177]
[1757393810030,0.02,4313.9,4313.8,6.24814177]
[1757393810632,0.02,4313.9,4313.8,5.79714177]
[1757393811132,0.02,4313.9,4313.8,6.24814177]
[1757393812624,0.02,4313.9,4313.8,6.54114177]
[1757393813131,0.02,4313.9,4313.8,5.79714177]
[1757393813302,0.02,4313.9,4313.8,5.31814177]
[1757393814925,0.02,4313.9,4313.8,5.32014177]
[1757393815402,0.2646,4313.9,4313.8,5.32014177]
[1757393815598,0.02,4313.9,4313.8,5.32014177]
[1757393817205,0.119,4313.9,4313.8,5.32014177]
[1757393821936,0.2713,4313.9,4313.8,2.32014177]
[1757393822265,0.119,4313.9,4313.8,2.32014177]
[1757393824269,0.02,4313.9,4313.8,2.32014177]
[1757393825120,0.119,4313.9,4313.8,0.002]
[1757393825281,0.119,4313.9,4313.8,2.32014177]
[1757393825626,0.02,4313.9,4313.8,3.54964177]
[1757393825925,0.02,4313.9,4313.8,6.54964177]
[1757393826175,0.02,4313.9,4313.8,7.4387486]
[1757393831873,0.02,4313.9,4313.8,7.5539486]
[1757393832074,0.02,4313.9,4313.8,6.22774177]